{"text_format":"1","workbook":"xlsx","n_sheets":6,"sheets":["Galerie","Fotoliste","Verzeichnis","Ausgal","StartEnd","Info"],"not_rendered":{"charts":0,"images":30,"macros":1,"external_links":2,"defined_names":11,"comments":0,"pivot_tables":0},"unopened":[],"bounds":{"document_bytes":16777216,"sheet_cells":100000,"rows_first":2000,"rows_last":500,"rows_between":2000,"halvings":0,"cell_chars":16384,"cell_head_chars":4096},"cells_cut":0,"cells_raw":0,"read":"whole","date_system":"1900"}

{"sheet":"Galerie","index":0,"n_rows":354,"n_cols":27,"rows_kept":354,"cut":false,"hidden":false,"merged":[[66,10,67,13]]}
[null,"       BrotWerk-Galerie"]
[null,null,null,null,null,null,null,null,null,null,null,null,null,null,null,null,null,null,null,null,null,null,null,null,null,null,"Nicht für den Hausgebrauch gedacht!"]
[]
[]
[]
[null,1,null,2,null,3,null,4]
[]
[]
[null,5,null,6,null,7,null,8]
[]
[]
[null,9,null,10,null,11,null,12]
[]
[]
[null,13,null,14,null,15,null,16]
[]
[]
[null,17,null,18,null,19,null,20]
[]
[]
[null,21,null,22,null,23,null,24]
[]
[]
[null,25,null,26,null,27,null,28]
[]
[]
[null,29,null,30,null,31,null,32]
[]
[]
[null,33,null,34,null,35,null,36]
[]
[]
[null,37,null,38,null,39,null,40]
[]
[]
[null,41,null,42,null,43,null,44]
[]
[]
[null,45,null,46,null,47,null,48]
[]
[]
[null,49,null,50,null,51,null,52]
[]
[]
[null,53,null,54,null,55,null,56]
[]
[]
[null,57,null,58,null,59,null,60]
[]
[]
[]
[]
[]
[]
[]
[]
[]
[]
[]
[]
[]
[]
[]
[]
[]
[]
[]
[]
[]
[]
[]
[]
[]
[]
[]
[]
[]
[]
[]
[]
[]
[]
[]
[]
[]
[]
[]
[]
[]
[]
[]
[]
[]
[]
[]
[]
[]
[]
[]
[]
[]
[]
[]
[]
[]
[]
[]
[]
[]
[]
[]
[]
[]
[]
[]
[]
[]
[]
[]
[]
[]
[]
[]
[]
[]
[]
[]
[]
[]
[]
[]
[]
[]
[]
[]
[]
[]
[]
[]
[]
[]
[]
[]
[]
[]
[]
[]
[]
[]
[]
[]
[]
[]
[]
[]
[]
[]
[]
[]
[]
[]
[]
[]
[]
[]
[]
[]
[]
[]
[]
[]
[]
[]
[]
[]
[]
[]
[]
[]
[]
[]
[]
[]
[]
[]
[]
[]
[]
[]
[]
[]
[]
[]
[]
[]
[]
[]
[]
[]
[]
[]
[]
[]
[]
[]
[]
[]
[]
[]
[]
[]
[]
[]
[]
[]
[]
[]
[]
[]
[]
[]
[]
[]
[]
[]
[]
[]
[]
[]
[]
[]
[]
[]
[]
[]
[]
[]
[]
[]
[]
[]
[]
[]
[]
[]
[]
[]
[]
[]
[]
[]
[{"$f":"IF(D252<>\"\",MID(D252,1,1),\"\")","v":""}]
[""]
[""]
[""]
[""]
[""]
[""]
[""]
[""]
[""]
[""]
[""]
[""]
[""]
[""]
[""]
[""]
[""]
[""]
[""]
[""]
[""]
[""]
[""]
[""]
[""]
[""]
[""]
[""]
[""]
[""]
[""]
[""]
[""]
[""]
[""]
[""]
[""]
[""]
[""]
[""]
[""]
[""]
[""]
[""]
[""]
[""]
[""]
[""]
[""]
[""]
[""]
[""]
[""]
[""]
[""]
[""]
[""]
[""]
[""]
[""]
[""]
[""]
[""]
[{"$f":"IF(D316<>\"\",MID(D316,1,1),\"\")","v":""}]
[""]
[""]
[""]
[""]
[""]
[""]
[""]
[""]
[""]
[""]
[""]
[""]
[""]
[""]
[""]
[""]
[""]
[""]
[""]
[""]
[""]
[""]
[""]
[""]
[""]
[""]
[""]
[""]
[""]
[""]
[""]
[""]
[""]
[""]
[""]
[""]
[""]
[""]

{"sheet":"Fotoliste","index":1,"n_rows":153,"n_cols":31,"rows_kept":153,"cut":false,"hidden":false,"merged":[[15,6,15,8],[19,6,19,8]]}
["             BrotWerk-Galerie: Foto-Verwaltung",null,null,null,null,"Fotoliste importieren",null,"      exportieren"]
[null,null,null,null,null,null,null,null,null,null,null,null,null,null,null,null,null,null,null,null,null,null,null,null,null,null,null,null,null,null,"Nicht für den Hausgebrauch gedacht!"]
[]
[null,{"$f":"IF(Verzeichnis!B1<>\"\",Verzeichnis!A1,\"\")","v":""},{"$f":"IF(Verzeichnis!B1<>\"\",Verzeichnis!B1,\"\")","v":""}]
[null,{"$f":"IF(Verzeichnis!B2<>\"\",Verzeichnis!A2,\"\")","v":""},{"$f":"IF(Verzeichnis!B2<>\"\",Verzeichnis!B2,\"\")","v":""}]
[null,{"$f":"IF(Verzeichnis!B3<>\"\",Verzeichnis!A3,\"\")","v":""},{"$f":"IF(Verzeichnis!B3<>\"\",Verzeichnis!B3,\"\")","v":""},null,null,"Foto verschieben von Position ",6,"auf Position",4]
[null,{"$f":"IF(Verzeichnis!B4<>\"\",Verzeichnis!A4,\"\")","v":""},{"$f":"IF(Verzeichnis!B4<>\"\",Verzeichnis!B4,\"\")","v":""}]
[null,{"$f":"IF(Verzeichnis!B5<>\"\",Verzeichnis!A5,\"\")","v":""},{"$f":"IF(Verzeichnis!B5<>\"\",Verzeichnis!B5,\"\")","v":""}]
[null,{"$f":"IF(Verzeichnis!B6<>\"\",Verzeichnis!A6,\"\")","v":""},{"$f":"IF(Verzeichnis!B6<>\"\",Verzeichnis!B6,\"\")","v":""}]
[null,{"$f":"IF(Verzeichnis!B7<>\"\",Verzeichnis!A7,\"\")","v":""},{"$f":"IF(Verzeichnis!B7<>\"\",Verzeichnis!B7,\"\")","v":""},null,null,"Foto Nr. ",1," löschen"]
[null,{"$f":"IF(Verzeichnis!B8<>\"\",Verzeichnis!A8,\"\")","v":""},{"$f":"IF(Verzeichnis!B8<>\"\",Verzeichnis!B8,\"\")","v":""}]
[null,{"$f":"IF(Verzeichnis!B9<>\"\",Verzeichnis!A9,\"\")","v":""},{"$f":"IF(Verzeichnis!B9<>\"\",Verzeichnis!B9,\"\")","v":""}]
[null,{"$f":"IF(Verzeichnis!B10<>\"\",Verzeichnis!A10,\"\")","v":""},{"$f":"IF(Verzeichnis!B10<>\"\",Verzeichnis!B10,\"\")","v":""}]
[null,{"$f":"IF(Verzeichnis!B11<>\"\",Verzeichnis!A11,\"\")","v":""},{"$f":"IF(Verzeichnis!B11<>\"\",Verzeichnis!B11,\"\")","v":""},null,null,"Foto Nr. ",7]
[null,{"$f":"IF(Verzeichnis!B12<>\"\",Verzeichnis!A12,\"\")","v":""},{"$f":"IF(Verzeichnis!B12<>\"\",Verzeichnis!B12,\"\")","v":""}]
[null,{"$f":"IF(Verzeichnis!B13<>\"\",Verzeichnis!A13,\"\")","v":""},{"$f":"IF(Verzeichnis!B13<>\"\",Verzeichnis!B13,\"\")","v":""},null,null,"umbennen in ","Kastiges Körnerbrot"]
[null,{"$f":"IF(Verzeichnis!B14<>\"\",Verzeichnis!A14,\"\")","v":""},{"$f":"IF(Verzeichnis!B14<>\"\",Verzeichnis!B14,\"\")","v":""}]
[null,{"$f":"IF(Verzeichnis!B15<>\"\",Verzeichnis!A15,\"\")","v":""},{"$f":"IF(Verzeichnis!B15<>\"\",Verzeichnis!B15,\"\")","v":""}]
[null,{"$f":"IF(Verzeichnis!B16<>\"\",Verzeichnis!A16,\"\")","v":""},{"$f":"IF(Verzeichnis!B16<>\"\",Verzeichnis!B16,\"\")","v":""}]
[null,{"$f":"IF(Verzeichnis!B17<>\"\",Verzeichnis!A17,\"\")","v":""},{"$f":"IF(Verzeichnis!B17<>\"\",Verzeichnis!B17,\"\")","v":""},null,null,"Name neues Foto ","Alt-ST-Verwertungsbrot"]
[null,{"$f":"IF(Verzeichnis!B18<>\"\",Verzeichnis!A18,\"\")","v":""},{"$f":"IF(Verzeichnis!B18<>\"\",Verzeichnis!B18,\"\")","v":""}]
[null,{"$f":"IF(Verzeichnis!B19<>\"\",Verzeichnis!A19,\"\")","v":""},{"$f":"IF(Verzeichnis!B19<>\"\",Verzeichnis!B19,\"\")","v":""}]
[null,{"$f":"IF(Verzeichnis!B20<>\"\",Verzeichnis!A20,\"\")","v":""},{"$f":"IF(Verzeichnis!B20<>\"\",Verzeichnis!B20,\"\")","v":""}]
[null,{"$f":"IF(Verzeichnis!B21<>\"\",Verzeichnis!A21,\"\")","v":""},{"$f":"IF(Verzeichnis!B21<>\"\",Verzeichnis!B21,\"\")","v":""},null,null,"neues Foto für Pos ",8," auswählen"]
[null,{"$f":"IF(Verzeichnis!B22<>\"\",Verzeichnis!A22,\"\")","v":""},{"$f":"IF(Verzeichnis!B22<>\"\",Verzeichnis!B22,\"\")","v":""}]
[null,{"$f":"IF(Verzeichnis!B23<>\"\",Verzeichnis!A23,\"\")","v":""},{"$f":"IF(Verzeichnis!B23<>\"\",Verzeichnis!B23,\"\")","v":""}]
[null,{"$f":"IF(Verzeichnis!B24<>\"\",Verzeichnis!A24,\"\")","v":""},{"$f":"IF(Verzeichnis!B24<>\"\",Verzeichnis!B24,\"\")","v":""}]
[null,{"$f":"IF(Verzeichnis!B25<>\"\",Verzeichnis!A25,\"\")","v":""},{"$f":"IF(Verzeichnis!B25<>\"\",Verzeichnis!B25,\"\")","v":""}]
[null,{"$f":"IF(Verzeichnis!B26<>\"\",Verzeichnis!A26,\"\")","v":""},{"$f":"IF(Verzeichnis!B26<>\"\",Verzeichnis!B26,\"\")","v":""}]
[null,{"$f":"IF(Verzeichnis!B27<>\"\",Verzeichnis!A27,\"\")","v":""},{"$f":"IF(Verzeichnis!B27<>\"\",Verzeichnis!B27,\"\")","v":""}]
[null,{"$f":"IF(Verzeichnis!B28<>\"\",Verzeichnis!A28,\"\")","v":""},{"$f":"IF(Verzeichnis!B28<>\"\",Verzeichnis!B28,\"\")","v":""}]
[null,{"$f":"IF(Verzeichnis!B29<>\"\",Verzeichnis!A29,\"\")","v":""},{"$f":"IF(Verzeichnis!B29<>\"\",Verzeichnis!B29,\"\")","v":""}]
[null,{"$f":"IF(Verzeichnis!B30<>\"\",Verzeichnis!A30,\"\")","v":""},{"$f":"IF(Verzeichnis!B30<>\"\",Verzeichnis!B30,\"\")","v":""}]
[null,{"$f":"IF(Verzeichnis!B31<>\"\",Verzeichnis!A31,\"\")","v":""},{"$f":"IF(Verzeichnis!B31<>\"\",Verzeichnis!B31,\"\")","v":""}]
[null,{"$f":"IF(Verzeichnis!B32<>\"\",Verzeichnis!A32,\"\")","v":""},{"$f":"IF(Verzeichnis!B32<>\"\",Verzeichnis!B32,\"\")","v":""}]
[null,{"$f":"IF(Verzeichnis!B33<>\"\",Verzeichnis!A33,\"\")","v":""},{"$f":"IF(Verzeichnis!B33<>\"\",Verzeichnis!B33,\"\")","v":""}]
[null,{"$f":"IF(Verzeichnis!B34<>\"\",Verzeichnis!A34,\"\")","v":""},{"$f":"IF(Verzeichnis!B34<>\"\",Verzeichnis!B34,\"\")","v":""}]
[null,{"$f":"IF(Verzeichnis!B35<>\"\",Verzeichnis!A35,\"\")","v":""},{"$f":"IF(Verzeichnis!B35<>\"\",Verzeichnis!B35,\"\")","v":""}]
[null,{"$f":"IF(Verzeichnis!B36<>\"\",Verzeichnis!A36,\"\")","v":""},{"$f":"IF(Verzeichnis!B36<>\"\",Verzeichnis!B36,\"\")","v":""}]
[null,{"$f":"IF(Verzeichnis!B37<>\"\",Verzeichnis!A37,\"\")","v":""},{"$f":"IF(Verzeichnis!B37<>\"\",Verzeichnis!B37,\"\")","v":""}]
[null,{"$f":"IF(Verzeichnis!B38<>\"\",Verzeichnis!A38,\"\")","v":""},{"$f":"IF(Verzeichnis!B38<>\"\",Verzeichnis!B38,\"\")","v":""}]
[null,{"$f":"IF(Verzeichnis!B39<>\"\",Verzeichnis!A39,\"\")","v":""},{"$f":"IF(Verzeichnis!B39<>\"\",Verzeichnis!B39,\"\")","v":""}]
[null,{"$f":"IF(Verzeichnis!B40<>\"\",Verzeichnis!A40,\"\")","v":""},{"$f":"IF(Verzeichnis!B40<>\"\",Verzeichnis!B40,\"\")","v":""}]
[null,{"$f":"IF(Verzeichnis!B41<>\"\",Verzeichnis!A41,\"\")","v":""},{"$f":"IF(Verzeichnis!B41<>\"\",Verzeichnis!B41,\"\")","v":""}]
[null,{"$f":"IF(Verzeichnis!B42<>\"\",Verzeichnis!A42,\"\")","v":""},{"$f":"IF(Verzeichnis!B42<>\"\",Verzeichnis!B42,\"\")","v":""}]
[null,{"$f":"IF(Verzeichnis!B43<>\"\",Verzeichnis!A43,\"\")","v":""},{"$f":"IF(Verzeichnis!B43<>\"\",Verzeichnis!B43,\"\")","v":""}]
[null,{"$f":"IF(Verzeichnis!B44<>\"\",Verzeichnis!A44,\"\")","v":""},{"$f":"IF(Verzeichnis!B44<>\"\",Verzeichnis!B44,\"\")","v":""}]
[null,{"$f":"IF(Verzeichnis!B45<>\"\",Verzeichnis!A45,\"\")","v":""},{"$f":"IF(Verzeichnis!B45<>\"\",Verzeichnis!B45,\"\")","v":""}]
[null,{"$f":"IF(Verzeichnis!B46<>\"\",Verzeichnis!A46,\"\")","v":""},{"$f":"IF(Verzeichnis!B46<>\"\",Verzeichnis!B46,\"\")","v":""}]
[null,{"$f":"IF(Verzeichnis!B47<>\"\",Verzeichnis!A47,\"\")","v":""},{"$f":"IF(Verzeichnis!B47<>\"\",Verzeichnis!B47,\"\")","v":""}]
[{"$f":"IF(D51<>\"\",MID(D51,1,1),\"\")","v":""},{"$f":"IF(Verzeichnis!B48<>\"\",Verzeichnis!A48,\"\")","v":""},{"$f":"IF(Verzeichnis!B48<>\"\",Verzeichnis!B48,\"\")","v":""}]
["",{"$f":"IF(Verzeichnis!B49<>\"\",Verzeichnis!A49,\"\")","v":""},{"$f":"IF(Verzeichnis!B49<>\"\",Verzeichnis!B49,\"\")","v":""}]
["",{"$f":"IF(Verzeichnis!B50<>\"\",Verzeichnis!A50,\"\")","v":""},{"$f":"IF(Verzeichnis!B50<>\"\",Verzeichnis!B50,\"\")","v":""}]
["",{"$f":"IF(Verzeichnis!B51<>\"\",Verzeichnis!A51,\"\")","v":""},{"$f":"IF(Verzeichnis!B51<>\"\",Verzeichnis!B51,\"\")","v":""}]
["",{"$f":"IF(Verzeichnis!B52<>\"\",Verzeichnis!A52,\"\")","v":""},{"$f":"IF(Verzeichnis!B52<>\"\",Verzeichnis!B52,\"\")","v":""}]
["",{"$f":"IF(Verzeichnis!B53<>\"\",Verzeichnis!A53,\"\")","v":""},{"$f":"IF(Verzeichnis!B53<>\"\",Verzeichnis!B53,\"\")","v":""}]
["",{"$f":"IF(Verzeichnis!B54<>\"\",Verzeichnis!A54,\"\")","v":""},{"$f":"IF(Verzeichnis!B54<>\"\",Verzeichnis!B54,\"\")","v":""}]
["",{"$f":"IF(Verzeichnis!B55<>\"\",Verzeichnis!A55,\"\")","v":""},{"$f":"IF(Verzeichnis!B55<>\"\",Verzeichnis!B55,\"\")","v":""}]
["",{"$f":"IF(Verzeichnis!B56<>\"\",Verzeichnis!A56,\"\")","v":""},{"$f":"IF(Verzeichnis!B56<>\"\",Verzeichnis!B56,\"\")","v":""}]
["",{"$f":"IF(Verzeichnis!B57<>\"\",Verzeichnis!A57,\"\")","v":""},{"$f":"IF(Verzeichnis!B57<>\"\",Verzeichnis!B57,\"\")","v":""}]
["",{"$f":"IF(Verzeichnis!B58<>\"\",Verzeichnis!A58,\"\")","v":""},{"$f":"IF(Verzeichnis!B58<>\"\",Verzeichnis!B58,\"\")","v":""}]
["",{"$f":"IF(Verzeichnis!B59<>\"\",Verzeichnis!A59,\"\")","v":""},{"$f":"IF(Verzeichnis!B59<>\"\",Verzeichnis!B59,\"\")","v":""}]
["",{"$f":"IF(Verzeichnis!B60<>\"\",Verzeichnis!A60,\"\")","v":""},{"$f":"IF(Verzeichnis!B60<>\"\",Verzeichnis!B60,\"\")","v":""}]
["",{"$f":"IF(Verzeichnis!B61<>\"\",Verzeichnis!A61,\"\")","v":""},{"$f":"IF(Verzeichnis!B61<>\"\",Verzeichnis!B61,\"\")","v":""}]
["",{"$f":"IF(Verzeichnis!B62<>\"\",Verzeichnis!A62,\"\")","v":""},{"$f":"IF(Verzeichnis!B62<>\"\",Verzeichnis!B62,\"\")","v":""}]
["",{"$f":"IF(Verzeichnis!B63<>\"\",Verzeichnis!A63,\"\")","v":""},{"$f":"IF(Verzeichnis!B63<>\"\",Verzeichnis!B63,\"\")","v":""}]
["",{"$f":"IF(Verzeichnis!B64<>\"\",Verzeichnis!A64,\"\")","v":""},{"$f":"IF(Verzeichnis!B64<>\"\",Verzeichnis!B64,\"\")","v":""}]
["",{"$f":"IF(Verzeichnis!B65<>\"\",Verzeichnis!A65,\"\")","v":""},{"$f":"IF(Verzeichnis!B65<>\"\",Verzeichnis!B65,\"\")","v":""}]
["",{"$f":"IF(Verzeichnis!B66<>\"\",Verzeichnis!A66,\"\")","v":""},{"$f":"IF(Verzeichnis!B66<>\"\",Verzeichnis!B66,\"\")","v":""}]
["",{"$f":"IF(Verzeichnis!B67<>\"\",Verzeichnis!A67,\"\")","v":""},{"$f":"IF(Verzeichnis!B67<>\"\",Verzeichnis!B67,\"\")","v":""}]
["",{"$f":"IF(Verzeichnis!B68<>\"\",Verzeichnis!A68,\"\")","v":""},{"$f":"IF(Verzeichnis!B68<>\"\",Verzeichnis!B68,\"\")","v":""}]
["",{"$f":"IF(Verzeichnis!B69<>\"\",Verzeichnis!A69,\"\")","v":""},{"$f":"IF(Verzeichnis!B69<>\"\",Verzeichnis!B69,\"\")","v":""}]
["",{"$f":"IF(Verzeichnis!B70<>\"\",Verzeichnis!A70,\"\")","v":""},{"$f":"IF(Verzeichnis!B70<>\"\",Verzeichnis!B70,\"\")","v":""}]
["",{"$f":"IF(Verzeichnis!B71<>\"\",Verzeichnis!A71,\"\")","v":""},{"$f":"IF(Verzeichnis!B71<>\"\",Verzeichnis!B71,\"\")","v":""}]
["",{"$f":"IF(Verzeichnis!B72<>\"\",Verzeichnis!A72,\"\")","v":""},{"$f":"IF(Verzeichnis!B72<>\"\",Verzeichnis!B72,\"\")","v":""}]
["",{"$f":"IF(Verzeichnis!B73<>\"\",Verzeichnis!A73,\"\")","v":""},{"$f":"IF(Verzeichnis!B73<>\"\",Verzeichnis!B73,\"\")","v":""}]
["",{"$f":"IF(Verzeichnis!B74<>\"\",Verzeichnis!A74,\"\")","v":""},{"$f":"IF(Verzeichnis!B74<>\"\",Verzeichnis!B74,\"\")","v":""}]
["",{"$f":"IF(Verzeichnis!B75<>\"\",Verzeichnis!A75,\"\")","v":""},{"$f":"IF(Verzeichnis!B75<>\"\",Verzeichnis!B75,\"\")","v":""}]
["",{"$f":"IF(Verzeichnis!B76<>\"\",Verzeichnis!A76,\"\")","v":""},{"$f":"IF(Verzeichnis!B76<>\"\",Verzeichnis!B76,\"\")","v":""}]
["",{"$f":"IF(Verzeichnis!B77<>\"\",Verzeichnis!A77,\"\")","v":""},{"$f":"IF(Verzeichnis!B77<>\"\",Verzeichnis!B77,\"\")","v":""}]
["",{"$f":"IF(Verzeichnis!B78<>\"\",Verzeichnis!A78,\"\")","v":""},{"$f":"IF(Verzeichnis!B78<>\"\",Verzeichnis!B78,\"\")","v":""}]
["",{"$f":"IF(Verzeichnis!B79<>\"\",Verzeichnis!A79,\"\")","v":""},{"$f":"IF(Verzeichnis!B79<>\"\",Verzeichnis!B79,\"\")","v":""}]
["",{"$f":"IF(Verzeichnis!B80<>\"\",Verzeichnis!A80,\"\")","v":""},{"$f":"IF(Verzeichnis!B80<>\"\",Verzeichnis!B80,\"\")","v":""}]
["",{"$f":"IF(Verzeichnis!B81<>\"\",Verzeichnis!A81,\"\")","v":""},{"$f":"IF(Verzeichnis!B81<>\"\",Verzeichnis!B81,\"\")","v":""}]
["",{"$f":"IF(Verzeichnis!B82<>\"\",Verzeichnis!A82,\"\")","v":""},{"$f":"IF(Verzeichnis!B82<>\"\",Verzeichnis!B82,\"\")","v":""}]
["",{"$f":"IF(Verzeichnis!B83<>\"\",Verzeichnis!A83,\"\")","v":""},{"$f":"IF(Verzeichnis!B83<>\"\",Verzeichnis!B83,\"\")","v":""}]
["",{"$f":"IF(Verzeichnis!B84<>\"\",Verzeichnis!A84,\"\")","v":""},{"$f":"IF(Verzeichnis!B84<>\"\",Verzeichnis!B84,\"\")","v":""}]
["",{"$f":"IF(Verzeichnis!B85<>\"\",Verzeichnis!A85,\"\")","v":""},{"$f":"IF(Verzeichnis!B85<>\"\",Verzeichnis!B85,\"\")","v":""}]
["",{"$f":"IF(Verzeichnis!B86<>\"\",Verzeichnis!A86,\"\")","v":""},{"$f":"IF(Verzeichnis!B86<>\"\",Verzeichnis!B86,\"\")","v":""}]
["",{"$f":"IF(Verzeichnis!B87<>\"\",Verzeichnis!A87,\"\")","v":""},{"$f":"IF(Verzeichnis!B87<>\"\",Verzeichnis!B87,\"\")","v":""}]
["",{"$f":"IF(Verzeichnis!B88<>\"\",Verzeichnis!A88,\"\")","v":""},{"$f":"IF(Verzeichnis!B88<>\"\",Verzeichnis!B88,\"\")","v":""}]
["",{"$f":"IF(Verzeichnis!B89<>\"\",Verzeichnis!A89,\"\")","v":""},{"$f":"IF(Verzeichnis!B89<>\"\",Verzeichnis!B89,\"\")","v":""}]
["",{"$f":"IF(Verzeichnis!B90<>\"\",Verzeichnis!A90,\"\")","v":""},{"$f":"IF(Verzeichnis!B90<>\"\",Verzeichnis!B90,\"\")","v":""}]
["",{"$f":"IF(Verzeichnis!B91<>\"\",Verzeichnis!A91,\"\")","v":""},{"$f":"IF(Verzeichnis!B91<>\"\",Verzeichnis!B91,\"\")","v":""}]
["",{"$f":"IF(Verzeichnis!B92<>\"\",Verzeichnis!A92,\"\")","v":""},{"$f":"IF(Verzeichnis!B92<>\"\",Verzeichnis!B92,\"\")","v":""}]
["",{"$f":"IF(Verzeichnis!B93<>\"\",Verzeichnis!A93,\"\")","v":""},{"$f":"IF(Verzeichnis!B93<>\"\",Verzeichnis!B93,\"\")","v":""}]
["",{"$f":"IF(Verzeichnis!B94<>\"\",Verzeichnis!A94,\"\")","v":""},{"$f":"IF(Verzeichnis!B94<>\"\",Verzeichnis!B94,\"\")","v":""}]
["",{"$f":"IF(Verzeichnis!B95<>\"\",Verzeichnis!A95,\"\")","v":""},{"$f":"IF(Verzeichnis!B95<>\"\",Verzeichnis!B95,\"\")","v":""}]
["",{"$f":"IF(Verzeichnis!B96<>\"\",Verzeichnis!A96,\"\")","v":""},{"$f":"IF(Verzeichnis!B96<>\"\",Verzeichnis!B96,\"\")","v":""}]
["",{"$f":"IF(Verzeichnis!B97<>\"\",Verzeichnis!A97,\"\")","v":""},{"$f":"IF(Verzeichnis!B97<>\"\",Verzeichnis!B97,\"\")","v":""}]
[""]
[""]
[""]
[""]
[""]
[""]
[""]
[""]
[""]
[""]
[""]
[""]
[""]
[""]
[{"$f":"IF(D115<>\"\",MID(D115,1,1),\"\")","v":""}]
[""]
[""]
[""]
[""]
[""]
[""]
[""]
[""]
[""]
[""]
[""]
[""]
[""]
[""]
[""]
[""]
[""]
[""]
[""]
[""]
[""]
[""]
[""]
[""]
[""]
[""]
[""]
[""]
[""]
[""]
[""]
[""]
[""]
[""]
[""]
[""]
[""]
[""]

{"sheet":"Verzeichnis","index":2,"n_rows":324,"n_cols":23,"rows_kept":324,"cut":false,"hidden":false,"merged":[]}
[1,null,null,"BrotWerk Fotoliste",1,"1.00",{"$f":"COUNTA(B:B)","v":0},"Anzahl Bilder","akt. Name BrotWerk:",{"$f":"Ausgal!B53","v":"BrotWerk 3.3.xlsm"},null,null,null,null,null,null,null,null,"Index","Zeile","Spalte"]
[2,null,null,null,null,"FotoOrdner","\\BrotFotos",null,"akt Pfad","C:\\Users\\Steffi\\Documents\\P - Kochen etc\\Backen\\BrotWerk\\Backoffice\\Homepage\\letzte Releases\\BrotFotos",null,null,null,null,null,null,null,null,1,1,1,{"$f":"INT((S2-1)/4)+1","v":1},{"$f":"S2-(V2-1)*4","v":1}]
[3,null,null,null,null,"Datei unbekanntes Bild","KeinFoto.jpg",null,"Datei neues Foto","20200611_152128.jpg",null,null,null,null,null,null,null,null,2,1,2,{"$f":"INT((S3-1)/4)+1","v":1},{"$f":"S3-(V3-1)*4","v":2}]
[4,null,null,null,null,"Name unbekanntes Bild","(hier Titel mit Nr eingegben)",null,"Ges-Pfad neues Foto","C:\\Users\\Steffi\\Documents\\P - Kochen etc\\Backen\\BrotWerk\\BrotFotos\\20200611_152128.jpg",null,null,null,null,null,null,null,null,3,1,3,1,3]
[5,null,null,null,null,"maximale Anzahl Bilder",60,null,null,null,null,null,null,null,null,null,null,null,4,1,4,1,4]
[6,null,null,null,null,null,null,null,"Datei neue Fotoliste","C:\\Users\\Steffi\\Documents\\P - Kochen etc\\Backen\\BrotWerk\\Exporte\\BW-FotoListe (8) 210418 16.05.37.xlsx",null,null,null,null,null,null,null,null,5,2,1,2,1]
[7,null,null,null,null,null,null,null,"Ges-Pfad neue Fotoliste","BW-FotoListe (8) 210418 16.05.37.xlsx",null,null,null,null,null,null,null,null,6,2,2,2,2]
[8,null,null,null,null,null,null,null,null,null,null,null,null,null,null,null,null,null,7,2,3,2,3]
[9,null,null,null,null,null,null,null,null,null,null,null,null,null,null,null,null,null,8,2,4,2,4]
[10,null,null,null,null,null,null,null,null,null,null,null,null,null,null,null,null,null,9,3,1,3,1]
[11,null,null,null,null,null,null,null,null,null,null,null,null,null,null,null,null,null,10,3,2,3,2]
[12,null,null,null,null,null,null,null,null,null,null,null,null,null,null,null,null,null,11,3,3,3,3]
[13,null,null,null,null,null,null,null,null,null,null,null,null,null,null,null,null,null,12,3,4,3,4]
[14,null,null,null,null,null,null,null,null,null,null,null,null,null,null,null,null,null,13,4,1,4,1]
[15,null,null,null,null,null,null,null,null,null,null,null,null,null,null,null,null,null,14,4,2,4,2]
[16]
[17]
[18]
[19]
[20]
[21]
[22]
[23]
[24]
[25]
[26]
[27]
[28]
[29]
[30]
[31]
[32]
[33]
[34]
[35]
[36]
[37]
[38]
[39]
[40]
[41]
[42]
[43]
[44]
[45]
[46]
[47]
[48]
[49]
[50]
[51]
[52]
[53]
[54]
[55]
[56]
[57]
[58]
[59]
[60]
[61]
[62]
[63]
[64]
[65]
[66]
[67]
[68]
[69]
[70]
[71]
[72]
[73]
[74]
[75]
[76]
[77]
[78]
[79]
[80]
[81]
[82]
[83]
[84]
[85]
[86]
[87]
[88]
[89]
[90]
[91]
[92]
[93]
[94]
[95]
[96]
[97]
[98]
[99]
[100]
[101]
[102]
[103]
[104]
[105]
[106]
[107]
[108]
[109]
[110]
[111]
[112]
[113]
[114]
[115]
[116]
[117]
[118]
[119]
[120]
[121]
[122]
[123]
[124]
[125]
[126]
[127]
[128]
[129]
[130]
[131]
[132]
[133]
[134]
[135]
[136]
[137]
[138]
[139]
[140]
[141]
[142]
[143]
[144]
[145]
[146]
[147]
[148]
[149]
[150]
[151]
[152]
[153]
[154]
[155]
[156]
[157]
[158]
[159]
[160]
[161]
[162]
[163]
[164]
[165]
[166]
[167]
[168]
[169]
[170]
[171]
[172]
[173]
[174]
[175]
[176]
[177]
[178]
[179]
[180]
[181]
[182]
[183]
[184]
[185]
[186]
[187]
[188]
[189]
[190]
[191]
[192]
[193]
[194]
[195]
[196]
[197]
[198]
[199]
[200]
[201]
[202]
[203]
[204]
[205]
[206]
[207]
[208]
[209]
[210]
[211]
[212]
[213]
[214]
[215]
[216]
[217]
[218]
[219]
[220]
[221]
[222]
[223]
[224]
[225]
[226]
[227]
[228]
[229]
[230]
[231]
[232]
[233]
[234]
[235]
[236]
[237]
[238]
[239]
[240]
[241]
[242]
[243]
[244]
[245]
[246]
[247]
[248]
[249]
[250]
[251]
[252]
[253]
[254]
[255]
[256]
[257]
[258]
[259]
[260]
[261]
[262]
[263]
[264]
[265]
[266]
[267]
[268]
[269]
[270]
[271]
[272]
[273]
[274]
[275]
[276]
[277]
[278]
[279]
[280]
[281]
[282]
[283]
[284]
[285]
[286]
[287]
[288]
[289]
[290]
[291]
[292]
[293]
[294]
[295]
[296]
[297]
[298]
[299]
[300]
[301]
[302]
[303]
[304]
[305]
[306]
[307]
[308]
[309]
[310]
[311]
[312]
[313]
[314]
[315]
[316]
[317]
[318]
[319]
[320]
[321]
[322]
[323]
[324]

{"sheet":"Ausgal","index":3,"n_rows":57,"n_cols":32,"rows_kept":57,"cut":false,"hidden":false,"merged":[]}
[null,"Brot.Werk - Galerie",null,null,null,null,null,null,null,null,null,null,null,null,"Ich freue mich über deinen Kommentar auf meiner Webseite:","https://brotwerk.webador.de"]
[null,null,null,null,null,null,null,null,null,null,null,null,null,null,null,null,null,null,null,null,null,null,null,null,null,null,null,null,null,null,null,"Nicht für den Hausgebrauch gedacht."]
[null,null,null,null,null,null,null,null,null,null,null,null,null,null,null,null,"Alles schließen"]
[null,null,null,"zurück zur Galerie",null,null,null,null,null,null,null,null,null,null,null,null,"[Daten werden gespeichert]"]
[null,null,null,null,null,null,null,null,"Galerie geöffnet lassen und"]
[null,null,null,null,null,null,null,null,"zum BrotWerk wechseln",null,null,null,"Galerie schließen und"]
[]
[]
[]
[]
[]
[]
[]
[]
[]
[]
[null,null,null,null,null,null,null,null,null,null,null,null,"zum BrotWerk"]
[null,null,null,null,null,null,null,null,null,null,null,null,"wechseln"]
[]
[]
[]
[]
[]
[]
[]
[]
[]
[]
[]
[]
[]
[]
[]
[]
[]
[]
[]
[]
[]
[]
[]
[]
[]
[]
[]
[]
[]
[]
[]
[null,"Übergabe-Informationen"]
[null,false,"Brotwerk ist geöffnet"]
[null,"C:\\Users\\Steffi\\Documents\\P - Kochen etc\\Backen\\BrotWerk\\Backoffice\\Homepage\\letzte Releases",null,null,null,null,"Pfad allg"]
[null,"BrotWerk 3.3.xlsm",null,"Dateiname BW inkl Version laut Quellmappe (=BrotWerk-Mappe)"]
[]
[null,{"$f":"CONCATENATE(B52,\"\\\",B53)","v":"C:\\Users\\Steffi\\Documents\\P - Kochen etc\\Backen\\BrotWerk\\Backoffice\\Homepage\\letzte Releases\\BrotWerk 3.3.xlsm"},null,null,null,null,null,null,null,"BrotWerk Pfad inkl Name",null,"TempVersion","T1.4"]
[null,"C:\\Users\\Steffi\\Documents\\P - Kochen etc\\Backen\\BrotWerk\\Backoffice\\Homepage\\letzte Releases\\Galerie 1.0.xlsm",null,null,null,null,null,null,null,"Galerie Pfad inkl Name",null,"TempVersion","T1.01"]
[null,false,"Bilderrahmen gefüllt"]

{"sheet":"StartEnd","index":4,"n_rows":153,"n_cols":5,"rows_kept":153,"cut":false,"hidden":false,"merged":[]}
[null,"       BrotWerk-Galerie"]
[]
[null,null,null,null,"Herzlich Willkommen in der BrotWerk-Galerie!"]
[]
[]
[]
[]
[]
[]
[]
[]
[]
[]
[]
[]
[]
[]
[]
[]
[]
[]
[]
[]
[]
[]
[]
[]
[]
[]
[]
[]
[]
[]
[]
[]
[]
[]
[]
[]
[]
[]
[]
[]
[]
[]
[]
[]
[]
[]
[]
[{"$f":"IF(D51<>\"\",MID(D51,1,1),\"\")","v":""}]
[""]
[""]
[""]
[""]
[""]
[""]
[""]
[""]
[""]
[""]
[""]
[""]
[""]
[""]
[""]
[""]
[""]
[""]
[""]
[""]
[""]
[""]
[""]
[""]
[""]
[""]
[""]
[""]
[""]
[""]
[""]
[""]
[""]
[""]
[""]
[""]
[""]
[""]
[""]
[""]
[""]
[""]
[""]
[""]
[""]
[""]
[""]
[""]
[""]
[""]
[""]
[""]
[""]
[""]
[""]
[""]
[""]
[""]
[""]
[""]
[""]
[""]
[""]
[{"$f":"IF(D115<>\"\",MID(D115,1,1),\"\")","v":""}]
[""]
[""]
[""]
[""]
[""]
[""]
[""]
[""]
[""]
[""]
[""]
[""]
[""]
[""]
[""]
[""]
[""]
[""]
[""]
[""]
[""]
[""]
[""]
[""]
[""]
[""]
[""]
[""]
[""]
[""]
[""]
[""]
[""]
[""]
[""]
[""]
[""]
[""]

{"sheet":"Info","index":5,"n_rows":48,"n_cols":21,"rows_kept":48,"cut":false,"hidden":false,"merged":[[45,14,45,20],[0,1,2,7],[24,1,24,20],[29,14,29,20],[30,1,30,20],[37,14,37,20]]}
[null,"       Handbuch zur Benutzung der  BrotWerk-Galerie"]
[]
[]
[]
[null,"Mit dieser Galerie könnt ihr die Erinnerung an eure gelungensten Brote für die Ewigkeit aufbewahren ;-)"]
[null,"Bis zu 60 Fotos könnt ihr hier mit Namen hinterlegen. Es bietet sich an, die entsprechenden Fotos alle im Ordner \"BrotFotos\" abzulegen,"]
[null,"der im Verzeichnis dieser Galerie angelegt wurde. Für die Fotos reicht eine Größe von etwa 500x400 Pixeln aus, dann verbraucht ihr nur je ca. 100kB Speicherplatz."]
[null,"Die Fotos werden aber automatisch auf die passende Größe gezoomt. Sie werden auch absichtlich nicht innerhalb der Galerie gespeichert,"]
[null,"sondern nur hereingeladen, das macht alles schneller und handlicher."]
[null,"Die Galerie funktioniert wegen der unvermeidlichen Dateiauswahlvorgänge wahrscheinlich nur unter Windows."]
[]
[]
[null,"Es gibt zwei Oberflächen, von denen aus ihr eure Fotos managen könnt: Direkt in der "]
[null,null,"Galerieansicht oder auf der eigentlichen"]
[null,null,"Verwaltungsseite."]
[]
[null,"Über das BrotWerk-Symbol oder das Ausgangs-Menü könnt ihr schnell zurück zu BrotWerk wechseln."]
[null,null,"Außerdem enthält die Galerie dieses kleine Handbuch."]
[]
[]
[null,"Übersicht"]
[]
[]
[null,"Die Steuerung erfolgt über verschiedene Schaltflächen und auch Eingaben direkt in bestimmte Zellen. Durch Doppelklick auf eine Zelle wird sie editierbar."]
[null,"Aus dem Kontext ist klar, ob als Eingabe eine Zahl oder Text erwartet wird. Wenn plötzlich  ##### im aktuellen oder auch in anderen Feldern erscheint, hat eure letzte Eingabe nicht ins vorgesehene Schema gepasst. Einfach das Feld nochmal richtig ausfüllen, dann regelt sich alles wieder. Bitte achtet auch darauf, dass ihr bei Texteingaben nicht mit +/-/= oder anderen Rechenzeichen beginnt. Stellt ggf. ein Leerzeichen oder ein einfaches Anführungszeichen ' voran."]
[]
[]
[null,"Galerieseite"]
[]
[null,null,null,null,null,null,null,null,null,null,null,null,null,null,"(1): Ausstellungsfläche. (2): Fotofeld. (3): Namensfeld.\nFoto hinzufügen: Durch Anklicken des Pluszeichens (4) wird ein Dateiauswahlmenü geöffnet, mit dessen Hilfe ein vorhandenes Foto zur Präsentation in der Galerie ausgewählt werden kann. Das Bild wird hinter dem letzten Foto der Galerie einsortiert. Der Name des Fotos wird in einem zweiten Schritt geändert: Doppelklick auf das Namensfeld (3) des neuen Fotos, Eingabe des neuen Namens mit führender laufender Nummer und Bestätigung der Umbenennung über die Sprechblase (6). Auf diese Weise kann man auch später jederzeit andere Fotos umbenennen.\nLöschen eines Fotos: Wählt zuerst ein Foto aus, indem ihr auf sein Namensfeld klickt. Dann betätigt ihr den Minusknopf (5) und bestätigt die Sicherheitsabfrage. Die hinter dem gelöschten Foto liegenden Bilder rücken automatisch nach, so dass es nie leere Plätze mitten in eurer Ausstellung gibt. Um ein eines aktuelleren Fotos für ein bereits ausgestelltes Brot einzustellen, wählt zunächst dieses Brot durch Klick auf sein Namensfeld. Danach öffnet ihr über den Bilderrahmen (7) das Dateiauswahlmenü und sucht das neue Foto aus. "]
[null,"Wenn ihr Fotos verschieben wollt, wechselt dafür über den Verschiebesymbol (8) in die Fotoverwaltung (siehe unten). Mit dem BrotWerk-Symbol (9) nehmt ihr eine Abkürzung zurück zum BrotWerk. Die Galerie bleibt dabei geöffnet. Über das Info-Symbol (10) gelangt ihr in dieses Handbuch. Der Ausgang (11) führt euch ins Ausgangs-Menü, über das ihr unter anderem die Galerie verlassen könnt."]
[]
[]
[]
[null,"Verwaltungsseite"]
[]
[]
[null,null,null,null,null,null,null,null,null,null,null,null,null,null,"(1): Liste der vorhandenen Bilder.\n\nFotos verschieben von Position (3) nach Position (4). Ausführen mit der Feder (2). Die anderen Fotos verschieben sich automatisch. \nFoto Nr. (6) löschen. Ausführen mit der Feder (5). \nFoto Nr. (8) umbenennen in (9). Ausführen mit der Feder (7). \nNeues Foto in die Galerie aufnehmen. Dafür erst den Namen (11)  festlegen und danach mit der Feder (10) den Dateiauswahldialog aufrufen. \nEin neues Foto für Brot Nr. (13) aussuchen => Feder (12) anklicken.\n\n(14): Wechsel zur Handbuch-Seite.\n(15): Wechsel zur Galerie-Ansicht.\n\n(16): Sollte unbeabsichtigt die Ansicht umgeschaltet worden sein (kann z.B. nach Minimierung des Fenster geschehen) und eine Formatierungsleiste oder ähnliches oben auf der Seite sichtbar sein, so könnt ihr hier die gewohnte, für Bäcker*innen optimierte Ansicht wiederherstellen. "]
[]
[]
[]
[]
[null,"Ausgang"]
[]
[]
[null,null,null,null,null,null,null,null,null,null,null,null,null,null,"(1)-(3): selbsterklärend\n\n(4): Galerie schließen und speichern. Falls BrotWerk auch geöffnet ist, wird es ebenfalls gespeichert und geschlossen.\n\n(5): Mit Klick auf den Spendenbeutel erscheint ein QR-Code, mit dem ihr gerne etwas per PayPal für mich deponieren könnt, wenn euch BrotWerk gefällt.\n"]
[]
[null,"Viel Spaß mit BrotWerk und dieser Galerie!",null,null,null,null,null,null,null,null,null,null,null,null,null,null,null,null,null,null,"Steffi, im April 2021"]